fUSD/lending_fUSD_20250607
["ID","MTS","AMOUNT","RATE_DAILY","PERIOD"]
[364832639,1749263482653,-207.831684,0.00027561,7]
[364832640,1749263482663,-151.0,0.00027561,7]
[364832641,1749263482674,-151.0,0.00027561,7]
[364832642,1749263482684,-151.0,0.00027561,7]
[364832643,1749263482694,-440.098134,0.00027561,7]
[364832644,1749263482704,-440.098134,0.00027561,7]
[364832645,1749263482715,-440.098134,0.00027561,7]
[364832646,1749263482726,-440.098134,0.00027561,7]
[364832647,1749263482735,-151.0,0.00027561,7]
[364832648,1749263482750,-151.0,0.00027561,7]
[364832649,1749263482761,-151.0,0.00027561,7]
[364832650,1749263482772,-151.0,0.00027561,7]
[364832651,1749263482782,-157.438289,0.00027561,7]
[364832652,1749263482792,-157.438287,0.00027561,7]
[364832653,1749263482803,-169.697119,0.00027561,7]
[364832654,1749263482815,-169.697121,0.00027561,7]
[364832655,1749263482824,-151.0,0.00027561,7]
[364832656,1749263482834,-151.0,0.00027561,7]
[364832657,1749263482844,-151.0,0.00027561,7]
[364832658,1749263482854,-151.0,0.00027561,7]
[364832659,1749263482863,-247.921277,0.00027561,7]
[364832660,1749263482872,-247.921277,0.00027561,7]
[364832661,1749263482883,-247.921277,0.00027561,7]
[364832662,1749263482892,-247.921277,0.00027561,7]
[364832663,1749263482903,-247.921277,0.00027561,7]
[364832664,1749263482912,-247.921282,0.00027561,7]
[364832665,1749263482923,-151.0,0.00027561,7]
[364832666,1749263482934,-152.212184,0.00027561,7]
[364832667,1749263482945,-636.82,0.00027561,5]
[364832668,1749263482955,-173.064256,0.00027561,7]
[364832669,1749263482965,-173.064254,0.00027561,7]
[364832670,1749263482975,-181.57892873,0.00027561,5]
[364832671,1749263482985,-222.20703411,0.00027561,5]
[364832672,1749263492606,213.0,0.00027,120]
[364832673,1749263492931,213.0,0.00027,120]
[364832679,1749264000002,253.2298013,0.00035616,120]
[364832680,1749264062493,2000.0,0.00035616,120]
[364832681,1749264077728,2000.0,0.00035616,120]
[364832682,1749264090414,2000.0,0.00035616,120]
[364832683,1749264122116,200.0,0.00035616,120]
[364832685,1749264422338,227.06,0.00013699,2]
[364832688,1749264426669,3487.79,0.00021,30]
[364832690,1749264449339,-227.06,0.00020187,2]
[364832691,1749264453546,-266.68645492,0.00021999,4]
[364832696,1749264629268,-151.0,0.00019776,2]
[364832704,1749264632529,-200.28690688,0.00019677,2]
[364832705,1749264632540,-23.67,0.00019776,2]
[364832706,1749264632550,-533.31354508,0.00021999,4]
[364832707,1749264632560,-300.0,0.00021999,2]
[364832708,1749264632571,-250.0,0.00021999,2]
[364832709,1749264632580,-250.0,0.00022146,2]
[364832710,1749264632590,-163.08844398,0.00022228,2]
[364832711,1749264632601,-800.0,0.00022329,4]
[364832712,1749264632612,-300.0,0.00022329,2]
[364832713,1749264632623,-1078.0,0.00022408,2]
[364832714,1749264632633,-230.18943652,0.00023315,2]
[364832715,1749264632643,-1078.0,0.00023588,2]
[364832716,1749264632652,-888.39,0.00023735,2]
[364832717,1749264632662,-800.0,0.00024199,4]
[364832718,1749264632672,-250.0,0.00024199,2]
[364832719,1749264632681,-164.23,0.00024718,2]
[364832720,1749264632691,-358.47,0.00024723,2]
[364832721,1749264632700,-1000.0,0.00024739,2]
[364832722,1749264632709,-1161.96648305,0.00024749,2]
[364832723,1749264632721,-38.03351695,0.00024749,2]
[364832724,1749264632731,-159.46,0.0002475,2]
[364832725,1749264632741,-1228.74,0.00024761,2]
[364832726,1749264632751,-300.0,0.00024827,2]
[364832727,1749264632760,-1078.0,0.00024829,2]
[364832728,1749264632770,-553.26375288,0.000249,12]
[364832729,1749264632780,-200.0,0.00025312,2]
[364832730,1749264632789,-553.2637528,0.00025348,13]
[364832731,1749264632799,-250.0,0.00025473,2]
[364832732,1749264632808,-150.0,0.00025524,7]
[364832733,1749264632819,-1667.71,0.00025524,2]
[364832734,1749264632828,-161.78,0.00025536,2]
[364832735,1749264632838,-358.47,0.0002565,2]
[364832736,1749264632848,-224.0,0.00025652,2]
[364832737,1749264632858,-1000.0,0.00025652,2]
[364832738,1749264632868,-150.0,0.00025704,2]
[364832739,1749264632878,-553.2637528,0.00025797,13]
[364832740,1749264632887,-6751.513,0.00025808,2]
[364832741,1749264632897,-271.7593,0.00025808,2]
[364832742,1749264632907,-328.51343847,0.00025877,2]
[364832743,1749264632917,-151.0,0.00025884,2]
[364832744,1749264632926,-151.0,0.00025884,2]
[364832746,1749264632936,-151.0,0.00025884,2]
[364832748,1749264632945,-151.0,0.00025884,2]
[364832750,1749264632955,-151.0,0.00025884,2]
[364832752,1749264632965,-151.0,0.00025884,2]
[364832754,1749264632974,-151.0,0.00025884,2]
[364832756,1749264632983,-151.0,0.00025884,2]
[364832759,1749264632993,-151.0,0.00025884,2]
[364832762,1749264633002,-151.0,0.00025884,2]
[364832765,1749264633011,-151.0,0.00025884,2]
[364832767,1749264633020,-267.66181736,0.00025884,2]
[364832769,1749264633030,-23900.0,0.00025887,2]
[364832771,1749264633040,-38957.68,0.000259,2]
[364832773,1749264633050,-1000.0,0.00025908,2]
[364832775,1749264633060,-1957.856,0.00025908,2]
[364832777,1749264633070,-151.0,0.00025908,2]
[364832779,1749264633082,-500.0,0.00025908,2]
[364832781,1749264633091,-151.0,0.00025908,2]
[364832783,1749264633102,-500.0,0.00025908,2]
[364832785,1749264633112,-500.0,0.00025908,2]
[364832787,1749264633123,-300.0,0.00025908,2]
[364832789,1749264633134,-197.68647046,0.00025908,2]
[364832791,1749264633144,-500.0,0.00025908,2]
[364832793,1749264633154,-500.0,0.00025908,2]
[364832795,1749264633164,-500.0,0.00025908,2]
[364832797,1749264633177,-300.0,0.00025908,2]
[364832799,1749264633188,-500.0,0.00025908,2]
[364832801,1749264633197,-500.0,0.00025908,2]
[364832803,1749264633206,-300.0,0.00025908,2]
[364832805,1749264633217,-500.0,0.00025908,2]
[364832807,1749264633227,-65.65447924,0.00025908,2]
[364832812,1749264633272,-434.34552076,0.00025908,2]
[364832815,1749264633284,-300.0,0.00025908,2]
[364832817,1749264633294,-500.0,0.00025908,2]
[364832819,1749264633304,-500.0,0.00025908,2]
[364832821,1749264633313,-300.0,0.00025908,2]
[364832823,1749264633323,-668.65185757,0.00025908,2]
[364832825,1749264633332,-500.0,0.00025908,2]
[364832827,1749264633342,-500.0,0.00025908,2]
[364832829,1749264633352,-300.0,0.00025908,2]
[364832831,1749264633361,-500.0,0.00025908,2]
[364832832,1749264633371,-500.0,0.00025908,2]
[364832834,1749264633384,-300.0,0.00025908,2]
[364832836,1749264633401,-500.0,0.00025908,2]
[364832838,1749264633412,-300.0,0.00025908,2]
[364832840,1749264633422,-500.0,0.00025908,2]
[364832842,1749264633431,-500.0,0.00025908,2]
[364832844,1749264633441,-300.0,0.00025908,2]
[364832846,1749264633451,-500.0,0.00025908,2]
[364832848,1749264633460,-500.0,0.00025908,2]
[364832850,1749264633470,-300.0,0.00025908,2]
[364832852,1749264633480,-500.0,0.00025908,2]
[364832854,1749264633490,-300.0,0.00025908,2]
[364832856,1749264633500,-500.0,0.00025908,2]
[364832858,1749264633510,-500.0,0.00025908,2]
[364832860,1749264633519,-300.0,0.00025908,2]
[364832862,1749264633530,-500.0,0.00025908,2]
[364832864,1749264633541,-500.0,0.00025908,2]
[364832866,1749264633551,-348.96103745,0.00025908,2]
[364832868,1749264633561,-500.0,0.00025908,2]
[364832870,1749264633571,-500.0,0.00025908,2]
[364832872,1749264633580,-500.0,0.00025908,2]
[364832883,1749264633680,-500.0,0.00025908,2]
[364832885,1749264633691,-500.0,0.00025908,2]
[364832887,1749264633701,-500.0,0.00025908,2]
[364832889,1749264633711,-151.0,0.00025908,2]
[364832891,1749264633721,-340.28723793,0.00025908,2]
[364832893,1749264633732,-207.4,0.00025908,2]
[364832895,1749264633741,-4657.52827818,0.00025922,2]
[364832897,1749264633751,-151.0,0.00025939,2]
[364832899,1749264633763,-576.18,0.00025947,30]
[364832901,1749264633774,-2030.296672,0.00025963,2]
[364832903,1749264633783,-151.0,0.00025994,2]
[364832905,1749264633794,-888.39,0.00025998,2]
[364832907,1749264633804,-206.0,0.00025999,2]
[364832909,1749264633814,-2105.41764886,0.00026018,2]
[364832911,1749264633824,-151.0,0.00026049,2]
[364832913,1749264633834,-1078.0,0.0002607,2]
[364832915,1749264633843,-645.92345195,0.00026073,2]
[364832917,1749264633853,-300.0,0.00026076,2]
[364832919,1749264633863,-162.05084622,0.00026104,2]
[364832921,1749264633873,-511.94867056,0.000262,2]
[364832923,1749264633883,-500.0,0.000262,2]
[364832925,1749264633893,-18.95879536,0.00026245,14]
[364832932,1749264633952,-311.4942604,0.00026245,14]
[364833332,1749264638379,-222.81069704,0.00026245,14]
[364833334,1749264638388,-165.43,0.00026309,2]
[364833336,1749264638398,-796.51,0.00026483,2]
[364833338,1749264638407,-2500.0,0.00026553,2]
[364833340,1749264638416,-358.47,0.00026577,2]
[364833342,1749264638425,-150.99,0.00026591,2]
[364833344,1749264638434,-3678.64,0.00026591,2]
[364833346,1749264638443,-833.55,0.00026591,2]
[364833348,1749264638452,-3868.35,0.00026591,5]
[364833350,1749264638461,-8485.60365212,0.00026591,2]
[364833353,1749264638489,-1514.38634788,0.00026591,2]
[364833355,1749264638498,-2847.56488716,0.00026591,2]
[364833358,1749264638509,-7152.42511284,0.00026591,2]
[364833360,1749264638518,-407.74,0.00026591,2]
[364833361,1749264638528,-9999.99,0.00026591,2]
[364833363,1749264638539,-499.99,0.00026591,2]
[364833365,1749264638548,-999.99,0.00026591,2]
[364833367,1749264638557,-9999.99,0.00026591,2]
[364833369,1749264638566,-150.99,0.00026591,2]
[364833371,1749264638575,-929.42,0.00026623,2]
[364833373,1749264638584,-678.13,0.00026642,2]
[364833375,1749264638594,-415.14934433,0.0002665,2]
[364833377,1749264638603,-500.0,0.0002665,2]
[364833379,1749264638613,-500.0,0.0002665,2]
[364833381,1749264638622,-500.0,0.0002665,2]
[364833383,1749264638631,-163.5471136,0.0002665,2]
[364833385,1749264638640,-500.0,0.0002665,2]
[364833387,1749264638650,-500.0,0.0002665,2]
[364833389,1749264638659,-500.0,0.0002665,2]
[364833391,1749264638669,-470.35235059,0.0002665,2]
[364833393,1749264638678,-500.0,0.0002665,2]
[364833395,1749264638687,-500.0,0.0002665,2]
[364833397,1749264638696,-500.0,0.0002665,2]
[364833398,1749264638705,-500.0,0.0002665,2]
[364833400,1749264638714,-500.0,0.0002665,2]
[364833402,1749264638723,-500.0,0.0002665,2]
[364833404,1749264638732,-500.0,0.0002665,2]
[364833406,1749264638741,-500.0,0.0002665,2]
[364833408,1749264638751,-500.0,0.0002665,2]
[364833410,1749264638760,-500.0,0.0002665,2]
[364833412,1749264638769,-500.0,0.0002665,2]
[364833414,1749264638778,-200.08554605,0.0002665,2]
[364833416,1749264638787,-500.0,0.0002665,2]
[364833418,1749264638796,-500.0,0.0002665,2]
[364833420,1749264638805,-500.0,0.0002665,2]
[364833422,1749264638815,-500.0,0.0002665,2]
[364833424,1749264638823,-500.0,0.0002665,2]
[364833426,1749264638832,-500.0,0.0002665,2]
[364833429,1749264638842,-462.1587323,0.0002665,2]
[364833431,1749264638865,-500.0,0.0002665,2]
[364833433,1749264638874,-500.0,0.0002665,2]
[364833435,1749264638884,-500.0,0.0002665,2]
[364833437,1749264638893,-500.0,0.0002665,2]
[364833439,1749264638902,-500.0,0.0002665,2]
[364833441,1749264638912,-500.0,0.0002665,2]
[364833443,1749264638922,-500.0,0.0002665,2]
[364833445,1749264638931,-500.0,0.0002665,2]
[364833447,1749264638941,-500.0,0.0002665,2]
[364833449,1749264638950,-500.0,0.0002665,2]
[364833451,1749264638960,-500.0,0.0002665,2]
[364833453,1749264638970,-500.0,0.0002665,2]
[364833455,1749264638979,-500.0,0.0002665,2]
[364833457,1749264638988,-500.0,0.0002665,2]
[364833459,1749264638997,-227.06,0.00026676,2]
[364833461,1749264639007,-553.2637528,0.00026693,15]
[364833463,1749264639016,-700.0,0.000267,9]
[364833465,1749264639026,-380.080113,0.00026733,6]
[364833467,1749264639037,-1000.0,0.00026748,2]
[364833469,1749264639046,-158.79712761,0.00026776,2]
[364833471,1749264639056,-200.21623874,0.00026776,2]
[364833472,1749264639065,-1400.0,0.000268,9]
[364833473,1749264639074,-158.79712754,0.00026834,2]
[364833474,1749264639083,-678.13,0.00026839,2]
[364833475,1749264639092,-59890.66,0.00026849,2]
[364833476,1749264639101,-504.50095672,0.00026876,7]
[364833477,1749264639111,-240.48,0.00026889,2]
[364833478,1749264639120,-158.79712754,0.00026892,2]
[364833479,1749264639129,-15659.2267652,0.00026897,2]
[364833480,1749264639138,-2100.0,0.000269,9]
[364833481,1749264639147,-155.94254518,0.000269,2]
[364833482,1749264639157,-155.94254513,0.000269,2]
[364833483,1749264639166,-155.94254513,0.000269,2]
[364833484,1749264639180,-304.0,0.00026901,2]
[364833485,1749264639188,-151.0,0.00026907,7]
[364833487,1749264639198,-276.276049,0.00026907,7]
[364833489,1749264639207,-151.0,0.0002691,7]
[364833491,1749264639218,-151.0,0.0002691,7]
[364833493,1749264639228,-151.0,0.0002691,7]
[364833495,1749264639237,-1680.0,0.0002694,2]
[364833497,1749264639247,-158.79712754,0.0002695,2]
[364833499,1749264639256,-678.13,0.0002698,2]
[364833501,1749264639266,-361.14,0.00026982,2]
[364833503,1749264639277,-222.819528,0.0002699,7]
[364833505,1749264639287,-151.0,0.0002699,7]
[364833507,1749264639303,-151.0,0.0002699,7]
[364833509,1749264639312,-151.0,0.0002699,7]
[364833511,1749264639321,-15659.2267652,0.0002699,2]
[364833513,1749264639331,-151.0,0.00027,7]
[364833515,1749264639341,-151.0,0.00027,7]
[364833517,1749264639350,-18632.0,0.00027,2]
[364833519,1749264639359,-359.0,0.00027,7]
[364833521,1749264639369,-150.73,0.00027002,2]
[364833523,1749264639379,-150.7,0.00027002,2]
[364833525,1749264639388,-151.56,0.00027002,2]
[364833527,1749264639398,-158.79712754,0.00027008,2]
[364833529,1749264639407,-158.79712754,0.00027065,2]
[364833531,1749264639417,-155.94254513,0.00027073,2]
[364833533,1749264639426,-200.21623868,0.00027079,2]
[364833535,1749264639435,-151.0,0.0002708,7]
[364833537,1749264639445,-151.0,0.0002708,7]
[364833539,1749264639454,-1000.0,0.000271,2]
[364833541,1749264639464,-158.79712754,0.00027123,2]
[364833543,1749264639473,-678.13,0.0002713,2]
[364833545,1749264639483,-15659.2267652,0.0002714,2]
[364833547,1749264639494,-553.2637528,0.00027141,16]
[364833549,1749264639503,-5000.0,0.00027165,2]
[364833550,1749264639512,-300.0,0.00027171,2]
[364833553,1749264639523,-165.43,0.00027178,2]
[364833554,1749264639532,-158.79712754,0.00027181,2]
[364833557,1749264639544,-15659.2267652,0.00027206,2]
[364833559,1749264639553,-678.13,0.00027206,2]
[364833560,1749264639563,-36067.4437,0.00027216,2]
[364833563,1749264639573,-1000.0,0.00027216,2]
[364833565,1749264639583,-159.46,0.00027225,2]
[364833567,1749264639593,-15659.2267652,0.00027226,2]
[364833569,1749264639603,-158.79712754,0.00027239,2]
[364833571,1749264639613,-500.0,0.0002724,2]
[364833573,1749264639623,-151.0,0.0002725,7]
[364833575,1749264639634,-151.0,0.0002725,7]
[364833577,1749264639644,-200.0,0.00027253,2]
[364833579,1749264639654,-4409.62974536,0.00027255,2]
[364833583,1749264639691,-3245.41111587,0.00027255,2]
[364833672,1749264640555,-856.60873021,0.00027255,2]
[364833674,1749264640568,-267.94550003,0.00027255,2]
[364834090,1749264646766,-257.80876377,0.0002665,2]
[364834142,1749264705797,307.82941925,0.00035616,120]
[364834143,1749264892092,1895.031584,0.00035616,120]
[364834144,1749264932743,399.07413491,0.00035616,120]
[364834145,1749265056528,200.0,0.00035616,120]
[364834147,1749265206653,531.0,0.00019,2]
[364834148,1749265233859,-216.32,0.0002,2]
[364834149,1749265327705,150.0,0.00035616,120]
[364834150,1749265336027,150.0,0.00035616,120]
[364834152,1749265343158,150.0,0.00035616,120]
[364834154,1749265482087,193.0,0.00013699,2]
[364834155,1749265483376,-153.68422273,0.00020187,2]
[364834156,1749265485138,-39.31577727,0.00020187,2]
[364834157,1749265589957,5888.0,0.00035616,120]
[364834165,1749265679892,2574.57,0.00035616,120]
[364834166,1749265813754,2238.0,0.00035616,120]
[364834168,1749265831618,-206.0,0.00021999,2]
[364834169,1749265831628,-474.0,0.00023,7]
[364834170,1749265831647,-185.80617054,0.00023188,2]
[364834171,1749265831662,-239.34512946,0.00023288,7]
[364834172,1749265831724,-234.65487054,0.00023288,7]
[364834173,1749265831733,-799.55,0.00023379,2]
[364834174,1749265831743,-185.80617052,0.000236,2]
[364834175,1749265831753,-185.80617052,0.00024012,2]
[364834176,1749265831763,-474.0,0.00024164,7]
[364834177,1749265831772,-185.80617052,0.00024423,2]
[364834178,1749265831782,-251.26598772,0.00024832,2]
[364834179,1749265831792,-442.61100224,0.000249,12]
[364834180,1749265831801,-152.0,0.00024919,3]
[364834181,1749265831812,-500.0,0.00024932,2]
[364834182,1749265831822,-500.0,0.00024932,2]
[364834183,1749265831832,-500.0,0.00024932,2]
[364834184,1749265831842,-200.0,0.00025,5]
[364834185,1749265831852,-206.0,0.00025166,6]
[364834186,1749265831862,-954.0,0.00025205,2]
[364834187,1749265831872,-302.83,0.00025206,2]
[364834188,1749265831882,-739.47868702,0.00025321,2]
[364834190,1749265831895,-260.52131298,0.00025321,2]
[364834192,1749265831905,-250.0,0.00025347,2]
[364834194,1749265831915,-89.47868702,0.00025348,13]
[364834198,1749265832049,-353.13231522,0.00025348,13]
[364834200,1749265832059,-19335.61020598,0.00025352,2]
[364834213,1749265837533,-185.80617052,0.00024835,2]
[364834214,1749265837546,-4564.38979402,0.00025352,2]
[364834215,1749265837557,-480.0,0.00025373,7]
[364834216,1749265837569,-168.14,0.00025534,2]
[364834217,1749265837586,-796.33,0.00025541,2]
[364834218,1749265837597,-833.85,0.00025545,2]
[364834219,1749265837607,-150.0,0.00025596,7]
[364834220,1749265837619,-200.0,0.00025612,2]
[364834221,1749265837629,-799.55,0.00025643,2]
[364834222,1749265837639,-796.33,0.00025741,2]
[364834223,1749265837651,-442.61100224,0.00025797,13]
[364834224,1749265837662,-1000.0,0.00025828,2]
[364834225,1749265837673,-161.78,0.00025852,2]
[364834226,1749265837683,-1000.0,0.00026,2]
[364834227,1749265837695,-1905.29828838,0.00026,3]
[364834228,1749265837706,-207.4,0.00026034,2]
[364834229,1749265837716,-152.0,0.00026077,4]
[364834230,1749265837727,-504.15,0.00026175,30]
[364834231,1749265837738,-151.0,0.00026239,2]
[364834232,1749265837748,-1000.0,0.00026239,2]
[364834233,1749265837759,-500.0,0.00026239,2]
[364834234,1749265837771,-400.09507562,0.00026239,2]
[364834235,1749265837782,-512.57041528,0.00026239,2]
[364834236,1749265837793,-500.0,0.00026239,2]
[364834237,1749265837803,-500.0,0.00026239,2]
[364834239,1749265837813,-500.0,0.00026239,2]
[364834241,1749265837824,-500.0,0.00026239,2]
[364834243,1749265837834,-500.0,0.00026239,2]
[364834245,1749265837851,-500.0,0.00026239,2]
[364834247,1749265837861,-360.91565152,0.00026239,2]
[364834249,1749265837873,-796.33,0.00026241,2]
[364834252,1749265837883,-442.61100224,0.00026245,14]
[364834254,1749265837894,-160.33,0.00026276,2]
[364834256,1749265837904,-250.0,0.00026276,2]
[364834258,1749265837914,-1602.53,0.00026441,2]
[364834260,1749265837926,-812.05,0.00026466,2]
[364834262,1749265837937,-460.94,0.00026466,2]
[364834264,1749265837947,-921.35,0.00026468,2]
[364834266,1749265837958,-500.0,0.00026553,2]
[364834268,1749265837969,-299.99,0.00026591,12]
[364834270,1749265837979,-9999.99,0.00026591,2]
[364834272,1749265837989,-150.99,0.00026591,2]
[364834274,1749265837999,-150.99,0.00026591,2]
[364834276,1749265838010,-999.99,0.00026591,2]
[364834278,1749265838020,-500.0,0.000266,9]
[364834281,1749265838030,-1000.0,0.000266,2]
[364834283,1749265838041,-250.0,0.00026607,2]
[364834285,1749265838052,-193.0,0.00026676,2]
[364834287,1749265838062,-442.61100224,0.00026693,15]
[364834289,1749265838072,-1000.0,0.000267,9]
[364834291,1749265838083,-342.072102,0.00026733,6]
[364834293,1749265838093,-300.88,0.0002674,2]
[364834295,1749265838104,-170.61,0.0002674,2]
[364834297,1749265838115,-150.0,0.0002674,2]
[364834299,1749265838126,-705.63,0.0002674,2]
[364834301,1749265838136,-163.22,0.0002674,2]
[364834303,1749265838146,-1166.411,0.0002679,2]
[364834305,1749265838157,-636.0,0.0002679,2]
[364834307,1749265838167,-810.0,0.0002679,2]
[364834309,1749265838177,-589.0,0.0002679,2]
[364834311,1749265838187,-1378.861,0.0002679,2]
[364834313,1749265838197,-938.421,0.0002679,2]
[364834315,1749265838208,-663.46,0.0002679,2]
[364834317,1749265838218,-2000.0,0.0002679,2]
[364834320,1749265838229,-1255.0,0.0002679,2]
[364834322,1749265838239,-1500.0,0.000268,9]
[364834324,1749265838251,-1159.0,0.00026809,2]
[364834326,1749265838261,-155.0,0.00026809,2]
[364834328,1749265838272,-228.71359591,0.00026809,2]
[364834332,1749265838299,-1244.25,0.00026809,2]
[364834334,1749265838316,-5545.03640409,0.00026809,2]
[364834336,1749265838327,-4082.0,0.00026809,2]
[364834338,1749265838337,-774.96359591,0.00026809,2]
[364834376,1749265839650,-108.03640409,0.00026809,2]
[364834377,1749265839663,-150.0,0.00026862,2]
[364834378,1749265839673,-432.14056805,0.000269,9]
[364834379,1749265839686,-1120.74622428,0.000269,9]
[364834380,1749265839697,-447.11320767,0.000269,9]
[364834381,1749265839707,-2509.20492,0.0002698,2]
[364834382,1749265839716,-864.01422152,0.00027,2]
[364834383,1749265839726,-1000.0,0.00027,2]
[364834384,1749265839736,-314.0,0.00027,7]
[364834385,1749265839746,-300.0,0.00027016,2]
[364834386,1749265839877,-4522.61765081,0.0002703,2]
[364834387,1749265839889,-9696.46389667,0.0002703,2]
[364834388,1749265839900,-155.94254513,0.0002703,2]
[364834389,1749265839910,-158.79712754,0.00027046,2]
[364834390,1749265839919,-150.16217901,0.00027046,2]
[364834391,1749265839928,-21633.21510736,0.00027046,2]
[364834392,1749265839938,-2500.0,0.00027046,2]
[364834393,1749265839948,-301.16,0.00027061,2]
[364834394,1749265839957,-474.0,0.00027064,7]
[364834395,1749265839968,-302.35,0.00027083,2]
[364834396,1749265839978,-305.96,0.00027084,2]
[364834397,1749265839988,-2509.20493,0.0002709,2]
[364834398,1749265839998,-2000.0,0.000271,2]
[364834399,1749265840009,-60000.0,0.000271,5]
[364834400,1749265840018,-14219.08154743,0.00027114,2]
[364834401,1749265840028,-21633.21510732,0.00027129,2]
[364834402,1749265840038,-301.27,0.0002713,2]
[364834403,1749265840047,-303.41,0.0002713,2]
[364834404,1749265840058,-300.5,0.0002713,2]
[364834405,1749265840068,-5000.0,0.00027135,2]
[364834406,1749265840078,-45660.5793022,0.00027136,2]
[364834407,1749265840087,-442.61100224,0.00027141,16]
[364834408,1749265840097,-267.14167969,0.00027144,2]
[364834409,1749265840106,-500.0,0.00027144,2]
[364834410,1749265840118,-500.0,0.00027144,2]
[364834412,1749265840127,-500.0,0.00027144,2]
[364834414,1749265840137,-500.0,0.00027144,2]
[364834415,1749265840146,-265.33684335,0.00027144,2]
[364834417,1749265840155,-2121.35214569,0.00027145,7]
[364834419,1749265840164,-150058.04757516,0.00027145,7]
[364834465,1749265840645,-185.80617052,0.00025247,2]
[364834467,1749265840657,-852.0,0.00026809,2]
[364834469,1749265840667,-272.49230327,0.00027145,7]
[364834483,1749265842745,-652.91291338,0.00027145,7]
[364834484,1749265842756,-497.38,0.00027145,7]
[364834485,1749265842903,-3726.0003385,0.00027145,7]
[364834536,1749265950928,200.0,0.00035616,120]
[364834537,1749265988882,5888.0,0.000356,120]
[364834538,1749266502189,2861.965,0.00019,2]
[364834540,1749266535068,164.05,0.00013699,2]
[364834541,1749266536246,-152.27717439,0.00020187,2]
[364834542,1749266540808,-11.77282561,0.00020187,2]
[364834543,1749266719198,-286.38450104,0.00021,2]
[364834544,1749266824057,200.0,0.00035616,120]
[364834561,1749266847677,201924.3,0.00019,2]
[364834562,1749266880852,-266.68645492,0.0002,2]
[364834563,1749266897651,-286.38450104,0.0002,2]
[364834564,1749266912368,150.0,0.00019,2]
[364834575,1749267004358,1800.0,0.00035616,120]
[364834578,1749267031840,-300.0,0.000197,7]
[364834579,1749267031850,-398.35662886,0.000197,7]
[364834580,1749267031953,-895.30918116,0.000197,7]
[364834581,1749267031964,-305.32,0.000197,7]
[364834582,1749267032011,-501.01418998,0.000197,7]
[364834583,1749267032021,-600.0,0.000198,7]
[364834584,1749267032031,-4200.0,0.000198,7]
[364834585,1749267032055,-300.0,0.00019899,2]
[364834586,1749267032066,-1200.0,0.00019899,2]
[364834587,1749267032077,-900.0,0.000199,7]
[364834588,1749267032088,-6400.0,0.000199,7]
[364834589,1749267032098,-13815.40927508,0.000199,2]
[364834590,1749267032109,-18912.33204281,0.00019973,2]
[364834591,1749267032127,-3156.66795719,0.00019973,2]
[364834592,1749267032138,-163.0,0.00019973,2]
[364834593,1749267032147,-500.0,0.00019973,2]
[364834594,1749267032158,-500.0,0.00019973,2]
[364834595,1749267032168,-626.93,0.0001999,3]
[364834596,1749267032178,-152.27,0.0001999,2]
[364834597,1749267032189,-152.27,0.0001999,2]
[364834598,1749267032200,-152.27,0.0001999,2]
[364834599,1749267032212,-152.27,0.0001999,2]